bitfinex/quotes_SOLUSD_20250601
["timestamp","ask_amount","ask_price","bid_price","bid_amount"]
[1748808975113,19.87214272,155.63,155.59,26.29928873]
[1748808976420,19.87214272,155.63,155.59,19.87214272]
[1748808977523,19.87214272,155.64,155.6,19.87214272]
[1748808978317,58.60733714,155.65,155.61,6.42632221]
[1748808978613,38.73519442,155.65,155.62,19.87214272]
[1748808979629,38.73519442,155.65,155.63,19.87214272]
[1748808981003,38.73519442,155.65,155.61,19.87214272]
[1748808981219,58.60733714,155.65,155.61,19.87214272]
[1748808982917,58.60733714,155.65,155.61,26.29830881]
[1748808983326,38.73519442,155.65,155.61,26.29830881]
[1748808983539,38.73519442,155.65,155.62,19.87214272]
[1748808983824,38.73519442,155.65,155.63,19.87214272]
[1748808984821,38.73519442,155.65,155.62,19.87214272]
[1748808987115,38.73519442,155.65,155.62,26.29787656]
[1748808989837,38.73519442,155.65,155.62,6.42573384]
[1748808992235,38.73519442,155.65,155.62,19.87214272]
[1748808992819,38.73519442,155.65,155.63,19.87214272]
[1748808995315,38.73519442,155.65,155.62,19.87214272]
[1748809000152,38.73519442,155.65,155.62,26.29794395]
[1748809004345,38.73519442,155.65,155.62,19.87214272]
[1748809004546,38.73519442,155.65,155.61,6.42619483]
[1748809004547,38.73519442,155.65,155.61,26.29833755]
[1748809005966,19.87214272,155.62,155.56,18.5]
[1748809006252,19.87214272,155.62,155.54,16.4695]
[1748809006253,19.87214272,155.61,155.55,26.30094374]
[1748809006456,19.87214272,155.6,155.56,19.87214272]
[1748809007140,19.87214272,155.61,155.57,6.42797454]
[1748809007545,19.87214272,155.61,155.57,26.30011726]
[1748809008338,1.6352,155.64,155.59,19.87214272]
[1748809008537,84.60733714,155.65,155.61,19.87214272]
[1748809008752,38.73519442,155.65,155.61,19.87214272]
[1748809009231,38.73519442,155.65,155.63,19.87214272]
[1748809009632,38.73519442,155.65,155.62,19.87214272]
[1748809014843,6.42432436,155.66,155.62,19.87214272]
[1748809015351,26.29646708,155.66,155.62,19.87214272]
[1748809016449,26.0,155.68,155.63,19.87214272]
[1748809016658,26.29570409,155.68,155.64,19.87214272]
[1748809020434,19.87214272,155.66,155.62,19.87214272]
[1748809021031,22.48214307,155.68,155.62,19.87214272]
[1748809021032,19.87214272,155.67,155.62,19.87214272]
[1748809021735,19.87214272,155.67,155.63,19.87214272]
[1748809022145,26.296316,155.67,155.63,19.87214272]
[1748809023153,26.296316,155.67,155.62,19.87214272]
[1748809025953,19.87214272,155.66,155.61,19.87214272]
[1748809026356,19.87214272,155.65,155.6,19.87214272]
[1748809026558,19.87214272,155.63,155.59,29.97214272]
[1748809026749,19.87214272,155.63,155.59,10.1]
[1748809026941,19.87214272,155.6,155.56,19.87214272]
[1748809027144,19.87214272,155.59,155.55,29.97214272]
[1748809027358,26.0,155.64,155.52,92.52]
[1748809027359,19.87214272,155.57,155.52,92.52]
[1748809027575,26.0,155.6,155.52,19.87214272]
[1748809027576,19.87214272,155.56,155.52,19.87214272]
[1748809027740,26.30135707,155.54,155.51,10.1]
[1748809027945,26.30135707,155.54,155.49,21.49384272]
[1748809028147,26.30135707,155.54,155.49,1.6217]
[1748809028340,19.87214272,155.53,155.47,23.10482205]
[1748809028566,19.87214272,155.51,155.47,29.97214272]
[1748809028742,19.87214272,155.53,155.48,19.87214272]
[1748809029071,19.87214272,155.52,155.48,19.87214272]
[1748809029259,19.87214272,155.53,155.48,19.87214272]
[1748809029766,55.2514535,155.56,155.47,16.53192327]
[1748809029767,19.87214272,155.55,155.5,19.87214272]
[1748809031054,19.87214272,155.52,155.47,29.97214272]
[1748809031445,19.87214272,155.52,155.47,36.40412706]
[1748809031645,26.0,155.55,155.47,10.1]
[1748809031646,19.87214272,155.5,155.47,10.1]
[1748809032058,19.87214272,155.51,155.47,6.43208312]
[1748809032457,19.87214272,155.51,155.47,26.30422584]
[1748809032852,19.87214272,155.52,155.47,26.30422584]
[1748809033966,19.87214272,155.51,155.47,26.30422584]
[1748809034275,19.87214272,155.51,155.46,26.30458768]
[1748809035066,19.87214272,155.5,155.46,6.43244496]
[1748809035576,19.87214272,155.51,155.46,26.30458768]
[1748809039950,19.87214272,155.54,155.49,19.87214272]
[1748809040149,19.87214272,155.54,155.5,19.87214272]
[1748809040647,19.87214272,155.55,155.5,19.87214272]
[1748809040844,19.87214272,155.54,155.5,19.87214272]
[1748809041267,19.87214272,155.55,155.5,19.87214272]
[1748809041472,19.87214272,155.55,155.51,19.87214272]
[1748809041847,19.87214272,155.55,155.5,19.87214272]
[1748809042698,19.87214272,155.55,155.5,26.30273855]
[1748809044955,26.30094964,155.55,155.5,26.30273855]
[1748809045581,19.87214272,155.55,155.5,26.30273855]
[1748809047382,19.87214272,155.55,155.51,19.87214272]
[1748809049056,19.87214272,155.56,155.51,26.30240609]
[1748809049257,19.87214272,155.57,155.52,19.87214272]
[1748809049654,19.87214272,155.56,155.52,19.87214272]
[1748809050877,19.87214272,155.56,155.52,26.30201542]
[1748809051684,19.87214272,155.56,155.52,6.4298727]
[1748809060783,19.87214272,155.56,155.51,26.30246454]
[1748809060996,19.87214272,155.55,155.51,26.30246454]
[1748809061365,19.87214272,155.54,155.5,19.87214272]
[1748809061671,19.87214272,155.52,155.48,10.1]
[1748809062702,19.87214272,155.56,155.51,19.87214272]
[1748809062899,19.87214272,155.56,155.52,19.87214272]
[1748809063593,19.87214272,155.57,155.52,19.87214272]
[1748809064593,19.87214272,155.57,155.53,6.42962772]
[1748809064787,35.99175682,155.58,155.53,26.30177044]
[1748809065105,34.35875682,155.58,155.53,26.30177044]
[1748809066286,19.87214272,155.57,155.53,26.30177044]
[1748809067900,34.35875682,155.58,155.53,26.30177044]
[1748809068100,14.4866141,155.58,155.56,19.87214272]
[1748809068399,14.4866141,155.58,155.55,19.87214272]
[1748809068887,14.4866141,155.58,155.54,19.87214272]
[1748809069876,14.4866141,155.58,155.55,26.30082206]
[1748809070980,34.35875682,155.58,155.53,10.1]
[1748809071181,19.87214272,155.56,155.53,10.1]
[1748809071800,19.87214272,155.56,155.51,19.87214272]
[1748809072015,19.87214272,155.56,155.52,6.42996052]
[1748809074893,19.87214272,155.56,155.51,26.30245798]
[1748809077403,19.87214272,155.56,155.49,32.27729606]
[1748809077404,19.87214272,155.54,155.49,36.4033145]
[1748809078199,19.87214272,155.53,155.49,16.53117178]
[1748809079416,6.42902746,155.55,155.49,16.53117178]
[1748809079725,19.87214272,155.53,155.49,16.53117178]
[1748809080239,19.87214272,155.53,155.49,10.1]
[1748809080396,19.87214272,155.52,155.49,10.1]
[1748809081503,19.87214272,155.52,155.49,16.53115526]
[1748809081717,19.87214272,155.55,155.5,19.87214272]
[1748809082785,19.87214272,155.54,155.49,36.40329798]
[1748809083396,19.87214272,155.54,155.5,19.87214272]
[1748809084103,19.87214272,155.54,155.5,26.30271595]
[1748809084501,182.95492888,155.57,155.5,26.30271595]
[1748809084704,19.87214272,155.55,155.5,26.30271595]
[1748809084920,19.87214272,155.54,155.5,26.30271595]
[1748809089811,6.42846324,155.56,155.5,26.30271595]
[1748809089812,19.87214272,155.55,155.5,26.30271595]
[1748809090415,19.87214272,155.55,155.51,19.87214272]
[1748809090709,14.4866141,155.58,155.5,6.43057323]
[1748809090710,19.87214272,155.56,155.52,19.87214272]
[1748809090914,19.87214272,155.56,155.5,6.43057323]
[1748809090915,19.87214272,155.55,155.5,26.30271595]
[1748809091290,19.87214272,155.53,155.48,36.40372594]
[1748809092016,19.87214272,155.52,155.48,16.53158322]
[1748809093920,19.87214272,155.53,155.48,36.40372594]
[1748809095317,19.87214272,155.53,155.49,19.87214272]
[1748809096317,21.37994272,155.56,155.51,19.87214272]
[1748809096518,19.87214272,155.56,155.52,19.87214272]
[1748809096719,19.87214272,155.56,155.51,19.87214272]
[1748809097014,19.87214272,155.55,155.5,19.87214272]
[1748809097218,19.87214272,155.55,155.5,26.30274568]
[1748809098203,19.87214272,155.54,155.5,26.30274568]
[1748809099724,19.87214272,155.54,155.5,6.43060296]
[1748809099920,19.87214272,155.55,155.5,6.43060296]
[1748809100098,19.87214272,155.55,155.5,26.30274568]
[1748809100805,19.87214272,155.56,155.51,19.87214272]
[1748809101912,19.87214272,155.55,155.5,19.87214272]
[1748809102909,19.87214272,155.54,155.49,26.30342447]
[1748809104508,19.87214272,155.53,155.48,36.40377982]
[1748809104724,19.87214272,155.52,155.48,16.5316371]
[1748809105096,6.42924416,155.54,155.48,16.5316371]
[1748809105321,19.87214272,155.54,155.49,19.87214272]
[1748809106025,19.87214272,155.54,155.5,6.43086816]
[1748809106938,45.87214272,155.55,155.5,26.30301088]
[1748809109715,45.87214272,155.55,155.51,19.87214272]
[1748809110435,14.4866141,155.58,155.49,22.50948613]
[1748809110621,19.4313191,155.6,155.49,22.50948613]
[1748809110622,1.5078,155.6,155.55,19.87214272]
[1748809110828,1.5078,155.6,155.56,19.87214272]
[1748809111027,21.37994272,155.6,155.56,19.87214272]
[1748809111532,174.9,155.62,155.57,19.87214272]
[1748809111533,19.87214272,155.61,155.57,19.87214272]
[1748809111835,19.87214272,155.61,155.57,26.30004835]
[1748809112911,168.77214272,155.62,155.58,19.87214272]
[1748809113850,148.9,155.62,155.58,19.87214272]
[1748809114336,1.5222,155.64,155.59,19.87214272]
[1748809114527,21.39434272,155.64,155.59,19.87214272]
[1748809115927,21.39434272,155.64,155.6,19.87214272]
[1748809116126,1.5222,155.64,155.6,19.87214272]
[1748809116324,21.39434272,155.64,155.6,19.87214272]
[1748809117630,19.87214272,155.63,155.58,19.87214272]
[1748809117819,7.94730095,155.64,155.57,19.87214272]
[1748809117820,19.87214272,155.62,155.57,19.87214272]
[1748809118035,19.87214272,155.61,155.56,26.30053048]
[1748809119029,19.87214272,155.62,155.57,19.87214272]
[1748809119621,52.29777217,155.63,155.58,19.87214272]
[1748809120830,19.87214272,155.62,155.57,19.87214272]
[1748809121348,19.87214272,155.62,155.57,26.30006248]
[1748809123156,45.87214272,155.63,155.58,19.87214272]
[1748809123531,52.29766147,155.63,155.58,19.87214272]
[1748809123930,19.87214272,155.62,155.57,26.30006248]
[1748809125551,26.29812801,155.62,155.57,19.87214272]
[1748809126353,19.87214272,155.6,155.55,26.30084046]
[1748809126854,19.87214272,155.6,155.56,19.87214272]
[1748809127660,19.87214272,155.6,155.56,26.3004929]
[1748809127862,26.29886031,155.61,155.56,26.3004929]
[1748809128153,19.87214272,155.61,155.56,26.3004929]
[1748809129655,26.29860236,155.61,155.56,26.3004929]
[1748809130038,19.87214272,155.6,155.56,19.87214272]
[1748809130457,19.87214272,155.6,155.55,19.87214272]
[1748809131762,26.29911239,155.6,155.55,19.87214272]
[1748809132184,19.87214272,155.59,155.55,19.87214272]
[1748809132478,19.87214272,155.59,155.54,26.3012097]
[1748809133672,19.87214272,155.59,155.55,26.30092001]
[1748809134442,26.29911239,155.6,155.55,26.30092001]
[1748809136757,19.87214272,155.58,155.53,10.1]
[1748809136947,19.87214272,155.58,155.53,36.40168247]
[1748809139965,19.87214272,155.59,155.54,19.87214272]
[1748809140165,168.77214272,155.61,155.56,26.30053048]
[1748809140377,19.87214272,155.6,155.56,6.42838776]
[1748809140669,148.9,155.61,155.58,19.87214272]
[1748809141576,19.87214272,155.65,155.6,19.87214272]
[1748809141870,19.87214272,155.65,155.61,19.87214272]
[1748809142184,26.29682738,155.65,155.61,19.87214272]
[1748809142346,26.29682738,155.65,155.6,19.87214272]
[1748809142542,26.29682738,155.65,155.61,19.87214272]
[1748809144177,26.29682738,155.65,155.6,19.87214272]
[1748809144366,19.87214272,155.64,155.6,19.87214272]
[1748809146082,19.87214272,155.65,155.6,26.29862266]
[1748809147077,19.87214272,155.65,155.6,19.87214272]
[1748809147255,19.87214272,155.64,155.6,19.87214272]
[1748809147872,19.87214272,155.64,155.59,19.87214272]
[1748809148077,26.29730423,155.64,155.59,19.87214272]
[1748809148656,26.29730423,155.64,155.6,19.87214272]
[1748809151955,19.87214272,155.64,155.6,26.29881388]
[1748809152461,19.87214272,155.64,155.6,19.87214272]
[1748809152956,26.29695685,155.65,155.6,19.87214272]
[1748809153284,26.29695685,155.65,155.6,26.29879816]
[1748809153482,26.29695685,155.65,155.6,19.87214272]
[1748809154773,26.29695685,155.65,155.6,26.29880539]
[1748809155156,52.29650493,155.66,155.61,19.87214272]
[1748809155387,45.87214272,155.66,155.61,19.87214272]
[1748809155680,188.06,155.67,155.63,19.87214272]
[1748809155681,155.32395534,155.67,155.63,19.87214272]
[1748809155888,175.19609806,155.67,155.63,19.87214272]
[1748809156182,175.19609806,155.67,155.62,19.87214272]
[1748809156493,155.32395534,155.67,155.62,19.87214272]
[1748809156676,175.19609806,155.67,155.62,19.87214272]
[1748809156881,19.87214272,155.66,155.61,19.87214272]
[1748809158262,26.29650456,155.66,155.61,19.87214272]
[1748809158661,19.87214272,155.64,155.59,19.87214272]
[1748809158870,19.87214272,155.63,155.59,19.87214272]
[1748809159060,19.87214272,155.64,155.59,19.87214272]
[1748809159666,26.29734037,155.64,155.59,19.87214272]
[1748809160185,26.29734037,155.64,155.59,26.29908288]
[1748809161965,26.29734037,155.64,155.6,19.87214272]
[1748809162889,26.29734037,155.64,155.59,26.29908288]
[1748809163978,19.87214272,155.65,155.6,19.87214272]
[1748809164178,19.87214272,155.66,155.59,6.42694016]
[1748809164477,19.87214272,155.66,155.61,19.87214272]
[1748809164975,19.87214272,155.65,155.61,19.87214272]
[1748809165181,19.87214272,155.65,155.61,26.29846327]
[1748809165585,26.29649869,155.66,155.61,26.29846327]
[1748809165781,19.87214272,155.65,155.61,26.29846327]
[1748809167205,26.29685305,155.65,155.61,19.87214272]
[1748809168081,19.87214272,155.65,155.61,19.87214272]
[1748809170093,12.49535909,155.71,155.61,26.29841481]
[1748809170305,21.46344272,155.72,155.67,19.87214272]
[1748809170475,32.16088445,155.73,155.62,46.19484886]
[1748809170476,32.16088445,155.73,155.69,19.87214272]
[1748809170678,32.16088445,155.73,155.72,19.87214272]
[1748809171493,19.87214272,155.78,155.72,19.87214272]
[1748809171791,19.87214272,155.78,155.73,19.87214272]
[1748809172173,19.87214272,155.78,155.73,26.29336683]
[1748809173173,19.87214272,155.77,155.73,26.29336683]
[1748809173999,19.87214272,155.76,155.71,19.87214272]
[1748809174484,19.87214272,155.76,155.72,19.87214272]
[1748809175293,19.87214272,155.77,155.72,19.87214272]
[1748809176098,19.87214272,155.77,155.72,26.29379751]
[1748809176296,19.87214272,155.78,155.73,19.87214272]
[1748809177280,19.87214272,155.78,155.73,26.2933956]
[1748809178701,26.29146271,155.78,155.73,19.87214272]
[1748809178915,19.87214272,155.77,155.69,10.1]
[1748809179080,19.87214272,155.77,155.72,19.87214272]
[1748809182083,19.87214272,155.77,155.72,26.29386503]
[1748809183191,19.87214272,155.77,155.72,19.87214272]
[1748809187509,19.87214272,155.77,155.72,26.29379965]
[1748809188309,19.87214272,155.77,155.73,19.87214272]
[1748809195920,6.41931999,155.78,155.73,19.87214272]
[1748809196123,19.87214272,155.77,155.73,19.87214272]
[1748809199210,19.87214272,155.77,155.73,26.2933913]
[1748809200616,19.87214272,155.77,155.73,19.87214272]
[1748809201425,19.87214272,155.78,155.73,26.29341138]
[1748809201710,194.77214272,155.79,155.74,19.87214272]
[1748809203509,194.77214272,155.79,155.75,6.42054574]
[1748809204014,194.77214272,155.79,155.74,26.29300185]
[1748809204220,19.87214272,155.77,155.72,19.87214272]
[1748809204534,19.87214272,155.77,155.72,26.29390333]
[1748809205333,19.87214272,155.76,155.72,19.87214272]
[1748809205714,19.87214272,155.76,155.71,26.29421957]
[1748809208335,26.29153746,155.78,155.73,19.87214272]
[1748809208553,174.9,155.79,155.71,6.42207685]
[1748809208554,148.9,155.79,155.76,19.87214272]
[1748809209956,148.9,155.79,155.76,26.29222794]
[1748809210248,148.9,155.79,155.76,19.87214272]
[1748809210617,148.9,155.79,155.75,26.29254262]
[1748809211123,148.9,155.79,155.75,19.87214272]
[1748809211322,148.9,155.79,155.73,19.87214272]
[1748809211323,19.87214272,155.78,155.73,19.87214272]
[1748809211527,19.87214272,155.77,155.73,19.87214272]
[1748809212537,19.87214272,155.77,155.73,26.29344095]
[1748809212752,26.29156388,155.78,155.73,26.29344095]
[1748809213635,19.87214272,155.78,155.74,19.87214272]
[1748809213828,168.77214272,155.79,155.74,26.29292787]
[1748809214019,148.9,155.79,155.75,19.87214272]
[1748809215616,148.9,155.79,155.75,26.29259158]
[1748809220428,168.77214272,155.79,155.74,19.87214272]
[1748809222241,168.77214272,155.79,155.75,6.42054574]
[1748809222746,148.9,155.79,155.75,26.29268846]
[1748809225739,168.77214272,155.79,155.75,6.42054574]
[1748809232431,148.9,155.79,155.75,19.87214272]
[1748809233941,148.9,155.79,155.75,26.29231272]
[1748809234125,148.9,155.79,155.76,19.87214272]
[1748809234954,148.9,155.79,155.76,26.29218803]
[1748809237155,148.9,155.79,155.76,12.65662486]
[1748809238342,148.9,155.79,155.76,19.07661889]
[1748809238857,148.9,155.79,155.78,12.65662486]
[1748809239259,148.9,155.85,155.78,19.76630968]
[1748809239558,148.9,155.85,155.82,19.76630968]
[1748809240547,148.9,155.85,155.81,19.76630968]
[1748809240749,155.31644777,155.85,155.81,19.76630968]
[1748809242343,148.9,155.85,155.81,19.76630968]
[1748809242543,148.9,155.85,155.82,19.76630968]
[1748809243640,148.9,155.85,155.81,26.18423676]
[1748809244951,175.08278354,155.85,155.8,26.18477457]
[1748809246072,168.66630968,155.85,155.8,26.18477457]
[1748809249177,148.9,155.85,155.81,19.76630968]
[1748809249475,39.1,155.86,155.83,19.76630968]
[1748809249647,84.86630968,155.88,155.83,19.76630968]
[1748809250372,19.76630968,155.87,155.83,19.76630968]
[1748809250564,19.76630968,155.87,155.82,19.76630968]
[1748809250972,19.76630968,155.87,155.82,26.18363943]
[1748809251166,26.18202841,155.87,155.82,19.76630968]
[1748809251470,19.76630968,155.86,155.81,26.18428835]
[1748809253266,1.558,155.89,155.81,26.18428835]
[1748809253443,21.32430968,155.89,155.84,19.76630968]
[1748809253650,60.42430968,155.89,155.84,19.76630968]
[1748809253850,19.76630968,155.89,155.84,19.76630968]
[1748809254751,19.76630968,155.89,155.85,6.41642605]
[1748809254955,26.18074064,155.9,155.85,26.18273573]
[1748809255177,19.76630968,155.88,155.83,10.08]
[1748809255478,19.76630968,155.89,155.85,19.76630968]
[1748809255974,174.9,155.91,155.85,19.76630968]
[1748809256164,214.0,155.91,155.86,19.76630968]
[1748809256355,194.66630968,155.91,155.86,19.76630968]
[1748809256882,194.66630968,155.91,155.86,26.18226866]
[1748809257779,19.76630968,155.87,155.83,29.84630968]
[1748809258580,19.76630968,155.87,155.83,10.08]
[1748809259068,19.76630968,155.87,155.83,16.49714073]
[1748809259977,19.76630968,155.87,155.83,36.26345041]
[1748809260589,19.76630968,155.87,155.83,10.08]
[1748809260879,19.76630968,155.87,155.83,16.49720726]
[1748809261078,19.76630968,155.87,155.83,10.08]
[1748809261662,19.76630968,155.86,155.83,10.08]
[1748809262070,19.76630968,155.84,155.79,24.06405644]
[1748809262371,19.76630968,155.84,155.79,43.83036612]
[1748809263867,19.76630968,155.83,155.79,24.06405644]
[1748809264185,19.76630968,155.82,155.79,10.08]
[1748809264971,19.76630968,155.82,155.79,16.49879368]
[1748809265581,19.76630968,155.81,155.79,16.49879368]
[1748809266071,39.08,155.85,155.8,19.76630968]
[1748809266271,19.76630968,155.84,155.79,36.26510336]
[1748809271707,19.76630968,155.83,155.79,36.26510336]
[1748809273177,19.76630968,155.83,155.79,16.49879368]
[1748809273771,19.76630968,155.82,155.79,10.08]
[1748809276303,19.76630968,155.82,155.79,16.4988972]
[1748809276806,19.76630968,155.8,155.79,10.08]
[1748809276972,19.76630968,155.8,155.76,6.41986494]
[1748809277173,19.76630968,155.79,155.76,6.41986494]
[1748809277372,6.2316,155.81,155.72,8.83000492]
[1748809277573,6.2316,155.81,155.7,16.05585309]
[1748809277574,19.76630968,155.74,155.7,16.05585309]
[1748809277998,19.76630968,155.75,155.7,35.82216277]
[1748809278391,19.76630968,155.75,155.71,6.4221951]
[1748809279820,26.0,155.78,155.72,19.76630968]
[1748809280128,19.76630968,155.76,155.72,19.76630968]
[1748809281427,19.76630968,155.76,155.73,6.42137032]
[1748809282326,19.76630968,155.77,155.73,6.42137032]
[1748809286535,148.9,155.79,155.73,6.42137032]
[1748809286736,19.76630968,155.77,155.73,6.42137032]
[1748809287411,19.76630968,155.77,155.73,26.18768]
[1748809287612,19.76630968,155.78,155.74,19.76630968]
[1748809288329,19.76630968,155.78,155.73,26.18768]
[1748809289731,19.76630968,155.77,155.73,26.18768]
[1748809290427,19.76630968,155.77,155.73,6.42137032]
[1748809290623,19.76630968,155.77,155.73,26.18768]
[1748809293930,19.76630968,155.76,155.73,6.42137032]
[1748809294137,148.9,155.79,155.72,19.76630968]
[1748809294138,19.76630968,155.75,155.72,6.42172802]
[1748809294918,19.76630968,155.75,155.71,6.42204556]
[1748809295221,19.76630968,155.74,155.71,6.42204556]
[1748809296540,19.76630968,155.74,155.7,6.42260757]
[1748809296915,19.76630968,155.75,155.7,26.18891725]
[1748809299837,19.76630968,155.74,155.7,26.18891725]
[1748809300849,19.76630968,155.74,155.7,6.42260757]
[1748809303336,34.00877159,155.78,155.7,26.18891725]
[1748809303533,19.76630968,155.75,155.71,19.76630968]
[1748809304247,19.76630968,155.75,155.7,26.18891725]
[1748809304823,19.76630968,155.74,155.7,6.42260757]
[1748809307760,19.76630968,155.73,155.7,6.42260757]
[1748809309867,19.76630968,155.74,155.7,6.42260757]
[1748809310665,19.76630968,155.74,155.7,26.18891725]
[1748809312755,19.76630968,155.71,155.69,10.06]
[1748809312996,19.76630968,155.72,155.69,16.48290333]
[1748809313266,19.76630968,155.73,155.69,16.48290333]
[1748809315557,19.76630968,155.72,155.69,16.48290333]
[1748809317243,6.42013353,155.76,155.69,16.48290333]
[1748809317440,19.76630968,155.73,155.69,16.48290333]
[1748809319755,19.76630968,155.73,155.69,6.42290333]
[1748809321978,19.76630968,155.74,155.69,26.18921301]
[1748809324166,19.76630968,155.73,155.69,26.18921301]
[1748809325757,19.76630968,155.73,155.68,42.24805114]
[1748809326952,19.76630968,155.72,155.68,6.42343268]
[1748809327151,12.66878916,155.72,155.68,6.42343268]
[1748809329262,19.79535874,155.71,155.68,6.42343268]
[1748809333167,19.79535874,155.72,155.68,6.42343268]
[1748809333581,155.31973193,155.77,155.68,22.48201438]
[1748809333890,155.31973193,155.77,155.68,42.27737312]
[1748809334088,19.79535874,155.75,155.7,19.79535874]
[1748809334477,19.79535874,155.75,155.68,22.48201438]
[1748809334478,19.79535874,155.75,155.71,19.79535874]
[1748809335093,19.79535874,155.76,155.72,19.79535874]
[1748809336185,168.69535874,155.77,155.73,6.42137032]
[1748809336400,19.79535874,155.76,155.73,6.42137032]
[1748809338698,19.79535874,155.75,155.73,6.42137032]
[1748809339910,19.79535874,155.76,155.73,6.42137032]
[1748809345998,168.69535874,155.77,155.73,26.21672906]
[1748809346307,148.9,155.77,155.73,26.21672906]
[1748809351078,19.79535874,155.78,155.73,26.21672906]
[1748809351289,12.6593246,155.78,155.73,19.08069492]
[1748809353694,12.6593246,155.76,155.73,6.42137032]
[1748809354012,12.6593246,155.74,155.72,10.1]
[1748809354212,12.6593246,155.73,155.68,22.7593246]
[1748809354413,12.6593246,155.72,155.68,22.7593246]
[1748809354999,12.6593246,155.72,155.69,6.4230201]
[1748809356892,12.6593246,155.73,155.69,6.4230201]
[1748809357209,19.79364693,155.73,155.69,6.4230201]
[1748809358396,19.79364693,155.72,155.69,6.4230201]
[1748809367218,19.79364693,155.73,155.69,6.4230201]
[1748809377234,12.66757532,155.73,155.69,6.4230201]
[1748809378133,12.66757532,155.72,155.69,6.4230201]
[1748809383140,12.66757532,155.7,155.68,10.1]
[1748809383316,12.66757532,155.69,155.66,6.42413351]
[1748809383524,12.66757532,155.68,155.66,6.42413351]
[1748809383715,12.66757532,155.69,155.66,6.42413351]
[1748809384433,12.66757532,155.69,155.65,6.42467073]
[1748809386417,12.66757532,155.68,155.65,6.42467073]
[1748809386752,12.66757532,155.68,155.64,22.74757532]
[1748809386753,12.66757532,155.66,155.64,10.08]
[1748809387746,39.12,155.7,155.61,6.42628852]
[1748809387747,12.66757532,155.65,155.61,6.42628852]
[1748809388034,50.67030128,155.68,155.61,6.42628852]
[1748809388035,12.66757532,155.64,155.61,6.42628852]
[1748809390325,12.66757532,155.63,155.61,6.42628852]
[1748809390646,12.66757532,155.62,155.61,6.42628852]
[1748809393859,12.66757532,155.63,155.61,6.42628852]
[1748809394443,12.66757532,155.63,155.6,16.50671695]
[1748809395539,12.66757532,155.62,155.6,16.50671695]
[1748809396731,12.66757532,155.63,155.6,16.50671695]
[1748809398542,148.9,155.65,155.6,45.24113031]
[1748809398849,148.9,155.65,155.61,12.66757532]
[1748809398850,161.56757532,155.65,155.61,12.66757532]
[1748809399028,161.56757532,155.65,155.6,45.24113031]
[1748809399653,148.9,155.65,155.61,12.66757532]
[1748809399844,161.56757532,155.65,155.61,12.66757532]
[1748809400050,161.56757532,155.65,155.6,32.57355499]
[1748809400357,161.56757532,155.65,155.61,12.66757532]
[1748809400567,148.9,155.65,155.6,32.57355499]
[1748809400758,161.56757532,155.65,155.6,45.24113031]
[1748809404251,148.9,155.65,155.61,12.66757532]
[1748809404456,12.66757532,155.66,155.62,12.66757532]
[1748809404760,12.66757532,155.66,155.61,12.66757532]
[1748809407341,12.66757532,155.66,155.62,6.42590926]
[1748809410043,12.66757532,155.64,155.62,6.42590926]
[1748809411170,12.66757532,155.64,155.61,6.42632221]
[1748809412862,12.66757532,155.63,155.6,16.50660448]
[1748809413377,12.66757532,155.64,155.6,16.50660448]
[1748809413571,155.32386225,155.67,155.6,16.50660448]
[1748809413743,161.56757532,155.66,155.62,12.66757532]
[1748809414689,148.9,155.66,155.62,12.66757532]
[1748809414978,148.9,155.66,155.6,32.57344252]
[1748809414979,161.56757532,155.66,155.63,6.42549636]
[1748809415289,161.56757532,155.66,155.62,6.42578699]
[1748809421282,148.9,155.66,155.63,12.66757532]
[1748809421483,148.9,155.66,155.64,12.66757532]
[1748809421665,161.56757532,155.7,155.65,12.66757532]
[1748809422294,12.66757532,155.71,155.66,12.66757532]
[1748809422592,29.12539996,155.72,155.7,12.66757532]
[1748809422765,29.12539996,155.72,155.69,12.66757532]
[1748809423382,12.66757532,155.73,155.7,6.42260757]
[1748809425279,19.79183896,155.73,155.69,19.79183896]
[1748809427098,19.79183896,155.73,155.7,6.42260757]
[1748809428377,19.79183896,155.73,155.67,6.42384531]
[1748809428584,19.79183896,155.72,155.67,26.21568427]
[1748809429388,19.79183896,155.72,155.68,19.79183896]
[1748809430484,19.79183896,155.72,155.69,6.4230201]
[1748809430681,19.79183896,155.73,155.69,26.21485906]
[1748809432280,19.79183896,155.74,155.69,26.21485906]
[1748809433311,148.9,155.75,155.72,19.79183896]
[1748809435017,148.9,155.75,155.71,19.79183896]
[1748809435980,148.9,155.75,155.72,6.42178268]
[1748809436893,168.69183896,155.75,155.72,6.42178268]
[1748809437785,19.79183896,155.74,155.71,6.42210542]
[1748809439795,168.69183896,155.75,155.71,6.42210542]
[1748809445910,148.9,155.75,155.71,6.42210542]
[1748809446113,148.9,155.75,155.71,26.21394438]
[1748809447108,148.9,155.75,155.7,16.05641157]
[1748809447109,180.78299947,155.8,155.74,19.79183896]
[1748809447307,148.9,155.8,155.78,19.79183896]